fUST/lending_fUST_20251020
["ID","MTS","AMOUNT","RATE_DAILY","PERIOD"]
[391891573,1760958642414,-3000.0,0.00033,10]
[391891574,1760958642423,-224054.0,0.00033,60]
[391891575,1760958642434,-155.0,0.00033,14]
[391891576,1760958642445,-632.0,0.00033003,2]
[391891577,1760958642454,-152.29305162,0.0003301,60]
[391891578,1760958642463,-151.56260228,0.0003301,60]
[391891579,1760958642473,-500.0,0.0003301,60]
[391891580,1760958642483,-151.0,0.0003301,60]
[391891581,1760958642492,-500.0,0.0003301,60]
[391891582,1760958642502,-500.0,0.0003301,60]
[391891583,1760958642511,-249.29810661,0.0003301,60]
[391891584,1760958642521,-500.0,0.0003301,60]
[391891585,1760958642531,-500.0,0.0003301,60]
[391891586,1760958642540,-151.0,0.0003301,60]
[391891587,1760958642549,-151.0,0.0003301,60]
[391891589,1760958642559,-392.7178133,0.00033014,30]
[391891590,1760958642568,-399.31577424,0.00033028,2]
[391891591,1760958642577,-1000.0,0.00033035,2]
[391891592,1760958642587,-1000.0,0.00033035,2]
[391891593,1760958642598,-1000.0,0.00033035,2]
[391891594,1760958642608,-1000.0,0.00033035,2]
[391891595,1760958642617,-1000.0,0.00033035,2]
[391891596,1760958642626,-1000.0,0.00033035,2]
[391891597,1760958642635,-1039.57200299,0.00033035,2]
[391891598,1760958642647,-800.0,0.00033036,2]
[391891599,1760958642658,-1432.24399238,0.00033037,2]
[391891600,1760958642667,-800.0,0.00033058,2]
[391891601,1760958642677,-500.0,0.00033064,60]
[391891603,1760958642686,-202.35749936,0.00033064,60]
[391891605,1760958642696,-500.0,0.00033064,60]
[391891607,1760958642705,-456.36142473,0.00033064,60]
[391891608,1760958642715,-500.0,0.00033064,60]
[391891609,1760958642725,-500.0,0.00033064,60]
[391891610,1760958642734,-151.0,0.00033064,60]
[391891611,1760958642743,-199.93893208,0.00033064,60]
[391891612,1760958642753,-151.0,0.000331,14]
[391891613,1760958642762,-229.290509,0.00033113,15]
[391891614,1760958642772,-212.10558,0.00033113,15]
[391891615,1760958642781,-500.0,0.00033119,60]
[391891616,1760958642791,-500.0,0.00033119,60]
[391891617,1760958642801,-500.0,0.00033119,60]
[391891618,1760958642811,-550.4742694,0.00033119,60]
[391891619,1760958642820,-274.4352498,0.00033119,60]
[391891621,1760958642829,-153.0,0.0003317,2]
[391891622,1760958642838,-153.0,0.0003317,2]
[391891623,1760958642847,-188.20289853,0.0003317,2]
[391891624,1760958642857,-530.39445784,0.0003317,2]
[391891625,1760958642866,-954.71002412,0.0003317,2]
[391891626,1760958642875,-1695.56500283,0.0003317,2]
[391891627,1760958642885,-179.5614471,0.0003317,2]
[391891628,1760958642894,-323.21060478,0.0003317,2]
[391891629,1760958642903,-574.02203409,0.0003317,2]
[391891630,1760958642913,-344.84794501,0.0003317,2]
[391891631,1760958642922,-620.72630102,0.0003317,2]
[391891632,1760958642931,-1103.51342404,0.0003317,2]
[391891633,1760958642940,-153.0,0.00033171,2]
[391891634,1760958642949,-153.0,0.00033171,2]
[391891635,1760958642958,-500.0,0.00033174,60]
[391891636,1760958642968,-524.91923794,0.00033174,60]
[391891637,1760958642978,-500.0,0.00033174,60]
[391891638,1760958642986,-1000.0,0.00033203,14]
[391891639,1760958642995,-304.8997414,0.00033203,30]
[391891640,1760958643004,-360.85031489,0.00033205,2]
[391891641,1760958643014,-411.98795952,0.00033205,2]
[391891642,1760958643025,-1307.31311085,0.00033205,2]
[391891643,1760958643035,-225.44840221,0.00033205,2]
[391891644,1760958643044,-405.80712399,0.00033205,2]
[391891645,1760958643053,-720.7134522,0.00033205,2]
[391891646,1760958643062,-212.59096488,0.00033205,2]
[391891647,1760958643071,-382.28107305,0.00033205,2]
[391891648,1760958643080,-328.37630468,0.00033205,2]
[391891649,1760958643090,-375.28720535,0.00033205,2]
[391891650,1760958643099,-397.31504072,0.00033205,2]
[391891651,1760958643109,-715.1670733,0.00033205,2]
[391891652,1760958643118,-1271.40813032,0.00033205,2]
[391891653,1760958643128,-1986.57520362,0.00033205,2]
[391891654,1760958643137,-500.0,0.00033229,60]
[391891655,1760958643147,-500.0,0.00033229,60]
[391891656,1760958643157,-503.29527612,0.00033284,60]
[391891657,1760958643171,-500.0,0.00033284,60]
[391891658,1760958643180,-342.50906841,0.00033298,2]
[391891659,1760958643190,-304.16799581,0.00033338,60]
[391891660,1760958643199,-1432.24399238,0.00033419,2]
[391891661,1760958643209,-1432.24399243,0.00033444,2]
[391891662,1760958643219,-2999.0,0.00033561,120]
[391891663,1760958643228,-66385.65,0.000337,10]
[391891664,1760958643238,-197.55868691,0.00033753,14]
[391891665,1760958643247,-7746.9100923,0.00033757,14]
[391891666,1760958643257,-1000.0,0.000338,13]
[391891667,1760958643266,-7291.5005824,0.00033831,2]
[391891668,1760958643275,-227.74523404,0.000339,120]
[391891669,1760958643285,-198.7963364,0.000339,120]
[391891670,1760958643294,-2941.84,0.000339,14]
[391891671,1760958643303,-1141.907673,0.00033931,30]
[391891672,1760958643312,-1141.907673,0.00033931,30]
[391891673,1760958643322,-151.0,0.00033931,30]
[391891674,1760958643331,-151.0,0.00033931,30]
[391891675,1760958643341,-1141.907673,0.00033931,30]
[391891676,1760958643350,-151.0,0.00033931,30]
[391891677,1760958643359,-1141.907673,0.00033931,30]
[391891678,1760958643367,-151.0,0.00033931,30]
[391891679,1760958643376,-151.0,0.00033931,30]
[391891680,1760958643386,-151.0,0.00033931,30]
[391891681,1760958643395,-151.0,0.00033931,30]
[391891682,1760958643405,-151.0,0.00033931,30]
[391891683,1760958643414,-151.0,0.00033931,30]
[391891684,1760958643423,-151.0,0.00033931,30]
[391891685,1760958643433,-169.790875,0.00033931,30]
[391891686,1760958643442,-151.0,0.00033931,30]
[391891687,1760958643451,-151.0,0.00033931,30]
[391891688,1760958643460,-151.0,0.00033931,30]
[391891689,1760958643470,-151.0,0.00033931,30]
[391891690,1760958643480,-181.355164,0.00033931,30]
[391891691,1760958643489,-151.0,0.00033931,30]
[391891692,1760958643499,-256.031148,0.00033931,30]
[391891693,1760958643508,-256.031148,0.00033931,30]
[391891694,1760958643518,-256.031148,0.00033931,30]
[391891695,1760958643527,-256.031148,0.00033931,30]
[391891696,1760958643536,-159.10792,0.00033931,30]
[391891697,1760958643545,-161.844852,0.00033931,30]
[391891698,1760958643554,-151.0,0.00033931,30]
[391891699,1760958643563,-151.0,0.00033931,30]
[391891700,1760958643573,-161.844852,0.00033931,30]
[391891701,1760958643582,-229.470551,0.00033931,30]
[391891702,1760958643591,-152.761404,0.00033931,30]
[391891703,1760958643600,-161.844852,0.00033931,30]
[391891704,1760958643611,-161.844852,0.00033931,30]
[391891705,1760958643619,-151.0,0.00033931,30]
[391891706,1760958643628,-151.0,0.00033931,30]
[391891707,1760958643637,-151.0,0.00033931,30]
[391891708,1760958643646,-151.0,0.00033931,30]
[391891709,1760958643655,-151.0,0.00033931,30]
[391891710,1760958643664,-151.0,0.00033931,30]
[391891711,1760958643673,-151.0,0.00033931,30]
[391891712,1760958643682,-151.0,0.00033931,30]
[391891713,1760958643691,-180.969693,0.00033931,30]
[391891714,1760958643700,-180.969693,0.00033931,30]
[391891715,1760958643709,-180.969693,0.00033931,30]
[391891716,1760958643719,-151.0,0.00033931,30]
[391891717,1760958643728,-180.969693,0.00033931,30]
[391891718,1760958643737,-151.0,0.00033931,30]
[391891719,1760958643747,-152.094476,0.00033931,30]
[391891720,1760958643756,-151.0,0.00033931,2]
[391891721,1760958643765,-151.0,0.00033931,30]
[391891722,1760958643774,-151.0,0.00033931,30]
[391891723,1760958643783,-799.886058,0.00033931,30]
[391891724,1760958643792,-799.886058,0.00033931,30]
[391891725,1760958643909,-151.0,0.00033931,30]
[391891726,1760958643919,-799.886058,0.00033931,30]
[391891727,1760958643928,-151.0,0.00033931,30]
[391891728,1760958643938,-799.886058,0.00033931,30]
[391891729,1760958643947,-151.0,0.00033931,30]
[391891730,1760958643956,-151.0,0.00033931,30]
[391891731,1760958643967,-151.0,0.00033931,30]
[391891732,1760958643976,-151.0,0.00033931,30]
[391891733,1760958643985,-151.0,0.00033931,30]
[391891734,1760958643998,-211.958132,0.00033931,30]
[391891735,1760958644007,-151.0,0.00033931,30]
[391891736,1760958644016,-211.958132,0.00033931,30]
[391891737,1760958644025,-211.958132,0.00033931,30]
[391891738,1760958644035,-211.958132,0.00033931,30]
[391891739,1760958644044,-603.91302003,0.00033941,5]
[391891740,1760958644054,-973.34228659,0.00033941,5]
[391891741,1760958644063,-244.18312906,0.00033941,5]
[391891742,1760958644072,-751.30218739,0.00033941,5]
[391891743,1760958644083,-329.88578348,0.00033941,5]
[391891744,1760958644092,-414.70997078,0.00033941,5]
[391891745,1760958644102,-8376.1210562,0.00033949,2]
[391891746,1760958644115,-6139.7830433,0.00033949,2]
[391891747,1760958644123,-36533.7258615,0.00033949,2]
[391891748,1760958644134,-504.33275469,0.00033957,30]
[391891749,1760958644143,-1826969.45054597,0.00033957,30]
[391891750,1760958644449,-48778.43371865,0.00033957,30]
[391891751,1760958644460,-8186.02382301,0.00033957,30]
[391891752,1760958644472,-30742.51225682,0.00033957,30]
[391891753,1760958644483,-1279.02547072,0.00033957,30]
[391891756,1760958645664,-161.75915953,0.0002488,2]
[391891757,1760958645674,-161.75915953,0.000249,2]
[391891758,1760958645683,-815.72,0.0002588,10]
[391891759,1760958645692,-190.1242307,0.0002902,2]
[391891760,1760958645701,-2875.79011789,0.00033957,30]
[391891761,1760958645712,-877.28155502,0.00033957,30]
[391891764,1760958652197,150.0,0.00020087,2]
[391891765,1760958777352,1885.94394239,0.00024141,2]
[391891766,1760958777376,8114.05605761,0.00024141,2]
[391891767,1760958781310,150.0,0.00020402,2]
[391891768,1760958781727,150.0,0.00021374,2]
[391891769,1760958782128,150.0,0.00022345,2]
[391891770,1760958782534,150.0,0.00023317,2]
[391891771,1760958809681,300.0,0.000201,2]
[391891772,1760958820787,300.0,0.000201,2]
[391891773,1760958848139,417.15472785,0.00024141,2]
[391891774,1760958848773,150.0,0.00020303,2]
[391891775,1760958849253,118.79921454,0.0002127,2]
[391891776,1760958849275,31.20078546,0.0002127,2]
[391891779,1760958918966,3009.58,0.00024141,2]
[391891782,1760959016797,172.905253,0.00024343,120]
[391891791,1760959064937,884.338466,0.00013699,2]
[391891792,1760959065143,884.338466,0.00020187,2]
[391891795,1760959275053,5221.753068,0.00024141,2]
[391891796,1760959275074,10000.01,0.00024141,2]
[391891797,1760959275095,10000.01,0.00024141,2]
[391891798,1760959275116,10000.01,0.00024141,2]
[391891799,1760959275136,10000.01,0.00024141,2]
[391891800,1760959275157,4778.206932,0.00024141,2]
[391891801,1760959289340,300.0,0.000202,2]
[391891802,1760959298908,150.0,0.00020341,2]
[391891803,1760959298975,150.0,0.0002131,2]
[391891804,1760959299380,150.0,0.00022278,2]
[391891805,1760959299783,150.0,0.00023247,2]
[391891806,1760959301581,300.0,0.000202,2]
[391891807,1760959312515,300.0,0.000202,2]
[391891808,1760959323969,300.0,0.000202,2]
[391891825,1760959621014,150.0,0.00020272,2]
[391891826,1760959621437,150.0,0.00021237,2]
[391891827,1760959621869,150.0,0.00022202,2]
[391891828,1760959622446,150.0,0.00023167,2]
[391891829,1760959622743,150.0,0.00024133,2]
[391891830,1760959637903,519.0,0.00034,60]
[391891833,1760959685237,550.83731168,0.00024,3]
[391891834,1760959687647,150.0,0.00020282,2]
[391891952,1760959831850,-259.60419376,0.00024142,2]
[391891953,1760959831861,-2590.77611788,0.00024142,2]
[391891954,1760959831871,-316.99979544,0.00024143,2]
[391891955,1760959831883,-172.905253,0.00024343,2]
[391891956,1760959831892,-172.905253,0.00024343,21]
[391891957,1760959831901,-172.905253,0.00024343,41]
[391891958,1760959831912,-172.905253,0.00024343,61]
[391891959,1760959831923,-172.905253,0.00024343,80]
[391891960,1760959831933,-172.905253,0.00024343,100]
[391891961,1760959831942,-150.0,0.00024343,2]
[391891962,1760959831951,-289.48923361,0.000244,2]
[391891963,1760959831959,-300.0,0.00024772,2]
[391891964,1760959831968,-1200.0,0.00024772,2]
[391891965,1760959831977,-18614.30908716,0.00024773,2]
[391891966,1760959831987,-214.75972148,0.00024773,2]
[391891967,1760959831996,-500.0,0.00024873,2]
[391891968,1760959832005,-500.0,0.00024873,2]
[391891969,1760959832015,-500.0,0.00024873,2]
[391891970,1760959832025,-500.0,0.00024873,2]
[391891971,1760959832035,-500.0,0.00024873,2]
[391891972,1760959832045,-500.0,0.00024873,2]
[391891973,1760959832056,-501.80809611,0.00024873,2]
[391891974,1760959832065,-500.0,0.00024873,2]
[391891975,1760959832074,-500.0,0.00024873,2]
[391891976,1760959832083,-500.0,0.00024873,2]
[391891977,1760959832094,-629.44775938,0.00024873,2]
[391891978,1760959832103,-165.55160532,0.00024873,2]
[391891979,1760959832113,-500.0,0.00024873,2]
[391891980,1760959832123,-495.69800222,0.00024873,2]
[391891981,1760959832134,-500.0,0.00024873,2]
[391891982,1760959832145,-500.0,0.00024873,2]
[391891983,1760959832155,-500.0,0.00024873,2]
[391891984,1760959832164,-500.0,0.00024873,2]
[391891985,1760959832173,-500.42760067,0.00024873,2]
[391891986,1760959832183,-500.85750236,0.00024873,2]
[391891987,1760959832192,-500.0,0.00024873,2]
[391891988,1760959832201,-500.0,0.00024873,2]
[391891989,1760959832210,-561.5019322,0.00024873,2]
[391891990,1760959832219,-150.0,0.00024873,2]
[391891991,1760959832229,-500.0,0.00024873,2]
[391891992,1760959832238,-500.0,0.00024873,2]
[391891993,1760959832247,-500.0,0.00024873,2]
[391891994,1760959832256,-500.0,0.00024873,2]
[391891995,1760959832265,-1491.12,0.0002488,3]
[391891996,1760959832274,-745.56,0.0002488,3]
[391891997,1760959832284,-372.78,0.0002488,3]
[391891998,1760959832293,-186.39,0.0002488,3]
[391891999,1760959832302,-559.18,0.0002488,3]
[391892000,1760959832312,-1581.75,0.0002488,10]
[391892001,1760959832321,-1318.13,0.0002488,10]
[391892002,1760959832330,-500.0,0.00024888,2]
[391892003,1760959832339,-1849.0,0.00024888,2]
[391892004,1760959832348,-500.0,0.00024888,2]
[391892005,1760959832357,-586.0,0.00024888,2]
[391892006,1760959832367,-151.0,0.00024888,2]
[391892007,1760959832376,-500.0,0.00024888,2]
[391892008,1760959832386,-277.90927765,0.00024888,2]
[391892009,1760959832395,-151.0,0.00024888,2]
[391892010,1760959832404,-500.0,0.00024888,2]
[391892011,1760959832414,-500.0,0.00024888,2]
[391892012,1760959832424,-151.0,0.00024888,2]
[391892013,1760959832434,-151.0,0.00024888,2]
[391892014,1760959832444,-154.48274439,0.00024888,2]
[391892015,1760959832453,-500.0,0.00024888,2]
[391892016,1760959832464,-504.3359731,0.00024889,2]
[391892017,1760959832473,-500.0,0.00024889,2]
[391892018,1760959832483,-276.66947524,0.00024889,2]
[391892019,1760959832492,-500.0,0.00024889,2]
[391892020,1760959832503,-500.0,0.00024889,2]
[391892021,1760959832512,-502.81412001,0.00024889,2]
[391892022,1760959832522,-500.0,0.00024889,2]
[391892023,1760959832531,-500.0,0.00024889,2]
[391892024,1760959832541,-304.6738453,0.00024889,2]
[391892025,1760959832550,-500.0,0.00024889,2]
[391892026,1760959832560,-200.0,0.00024889,2]
[391892027,1760959832573,-500.0,0.00024889,2]
[391892028,1760959832582,-500.0,0.00024889,2]
[391892029,1760959832592,-500.0,0.00024889,2]
[391892030,1760959832602,-500.0,0.00024889,2]
[391892031,1760959832612,-500.0,0.00024889,2]
[391892032,1760959832621,-500.0,0.00024889,2]
[391892033,1760959832631,-177.96764098,0.00024889,2]
[391892034,1760959832640,-500.0,0.00024889,2]
[391892035,1760959832650,-500.0,0.00024889,2]
[391892036,1760959832659,-500.0,0.00024889,2]
[391892037,1760959832668,-358.5,0.00024889,2]
[391892038,1760959832678,-327.40896738,0.00024889,2]
[391892039,1760959832687,-500.0,0.00024889,2]
[391892040,1760959832696,-500.0,0.00024889,2]
[391892041,1760959832706,-500.0,0.00024889,2]
[391892042,1760959832715,-500.0,0.00024889,2]
[391892043,1760959832725,-500.0,0.00024889,2]
[391892044,1760959832734,-500.0,0.00024889,2]
[391892045,1760959832743,-500.0,0.00024889,2]
[391892046,1760959832752,-500.0,0.00024889,2]
[391892047,1760959832761,-500.0,0.00024889,2]
[391892048,1760959832770,-500.0,0.00024889,2]
[391892049,1760959832780,-500.0,0.00024889,2]
[391892050,1760959832790,-500.0,0.00024889,2]
[391892051,1760959832799,-500.0,0.00024889,2]
[391892052,1760959832809,-454.27357518,0.00024889,2]
[391892053,1760959832819,-500.0,0.00024889,2]
[391892054,1760959832829,-500.0,0.00024889,2]
[391892055,1760959832840,-500.0,0.00024889,2]
[391892056,1760959832851,-500.0,0.00024889,2]
[391892057,1760959832861,-500.0,0.00024889,2]
[391892058,1760959832872,-500.0,0.00024889,2]
[391892059,1760959832882,-500.0,0.00024889,2]
[391892060,1760959832892,-500.0,0.00024889,2]
[391892061,1760959832902,-500.0,0.00024889,2]
[391892062,1760959832912,-500.0,0.00024889,2]
[391892063,1760959832921,-500.0,0.00024889,2]
[391892064,1760959832932,-500.0,0.00024889,2]
[391892065,1760959832942,-500.0,0.00024889,2]
[391892066,1760959832953,-444.91816002,0.00024889,2]
[391892067,1760959832963,-500.0,0.00024889,2]
[391892068,1760959832973,-500.0,0.00024889,2]
[391892069,1760959832983,-500.0,0.00024889,2]
[391892070,1760959833120,-360.76029114,0.00024889,2]
[391892071,1760959833137,-139.23970886,0.00024889,2]
[391892072,1760959833146,-266.78877926,0.00024889,2]
[391892073,1760959833479,417.15472785,0.00024141,2]
[391892091,1760959837696,-500.0,0.00024888,2]
[391892092,1760959837706,-500.0,0.00024888,2]
[391892093,1760959837715,-233.21122074,0.00024889,2]
[391892094,1760959837725,-500.0,0.00024889,2]
[391892095,1760959837735,-500.0,0.00024889,2]
[391892096,1760959837744,-500.0,0.00024889,2]
[391892097,1760959837754,-500.0,0.00024889,2]
[391892098,1760959837763,-500.0,0.00024889,2]
[391892099,1760959837772,-500.0,0.00024889,2]
[391892100,1760959837782,-500.0,0.00024889,2]
[391892101,1760959837793,-500.0,0.00024889,2]
[391892102,1760959837802,-500.0,0.00024889,2]
[391892103,1760959837811,-500.0,0.00024889,2]
[391892104,1760959837820,-500.0,0.00024889,2]
[391892105,1760959837829,-500.0,0.00024889,2]
[391892106,1760959837838,-500.0,0.00024889,2]
[391892107,1760959837847,-500.0,0.00024889,2]
[391892108,1760959837857,-615.45129681,0.00024889,2]
[391892109,1760959837866,-570.81273915,0.00024889,2]
[391892110,1760959837875,-500.0,0.00024889,2]
[391892111,1760959837884,-500.0,0.00024889,2]
[391892112,1760959837893,-500.0,0.00024889,2]
[391892113,1760959837901,-500.0,0.00024889,2]
[391892114,1760959837910,-500.0,0.00024889,2]
[391892115,1760959837919,-500.0,0.00024889,2]
[391892116,1760959837929,-640.60016568,0.00024889,2]
[391892117,1760959837938,-500.0,0.00024889,2]
[391892118,1760959837947,-500.0,0.00024889,2]
[391892119,1760959837957,-269704.63529742,0.0002489,2]
[391892120,1760959837985,-100295.36470258,0.0002489,2]
[391892121,1760959837994,-500.0,0.0002489,5]
[391892122,1760959838003,-18579.23,0.000249,7]
[391892123,1760959838013,-401178.359215,0.000249,2]
[391892124,1760959838023,-318.0,0.00024908,2]
[391892125,1760959838032,-1849.0,0.00024943,2]
[391892126,1760959838043,-500.0,0.00024943,2]
[391892127,1760959838052,-586.0,0.00024943,2]
[391892128,1760959838061,-151.0,0.00024943,2]
[391892129,1760959838071,-500.0,0.00024943,2]
[391892130,1760959838081,-159.25706955,0.00024943,2]
[391892131,1760959838090,-500.0,0.00024943,2]
[391892132,1760959838100,-500.0,0.00024943,2]
[391892133,1760959838110,-245.35055886,0.00024943,2]
[391892134,1760959838119,-500.0,0.00024943,2]
[391892135,1760959838258,-500.0,0.00024943,2]
[391892136,1760959838269,-500.0,0.00024943,2]
[391892137,1760959838278,-172.5,0.00024943,2]
[391892138,1760959838288,-500.0,0.00024973,2]
[391892139,1760959838297,-500.0,0.00024973,2]
[391892140,1760959838307,-500.0,0.00024973,2]
[391892141,1760959838316,-500.0,0.00024973,2]
[391892142,1760959838326,-1000.0,0.00024989,2]
[391892143,1760959838335,-1000.0,0.00024989,2]
[391892144,1760959838345,-1000.0,0.00024989,2]
[391892145,1760959838354,-1000.0,0.00024989,2]
[391892146,1760959838363,-1000.0,0.00024989,2]
[391892147,1760959838372,-100000.0,0.0002499,2]
[391892148,1760959838382,-1849.0,0.00024998,2]
[391892149,1760959838391,-500.0,0.00024998,2]
[391892150,1760959838400,-586.0,0.00024998,2]
[391892151,1760959838410,-151.0,0.00024998,2]
[391892152,1760959838420,-500.0,0.00024998,2]
[391892153,1760959838430,-500.0,0.00024998,2]
[391892154,1760959838439,-500.0,0.00024998,2]
[391892155,1760959838449,-500.0,0.00024998,2]
[391892156,1760959838459,-500.0,0.00024998,2]
[391892157,1760959838468,-242.22859,0.00025,2]
[391892158,1760959838477,-212.10558,0.00025,2]
[391892159,1760959838487,-638.3112946,0.00025,3]
[391892160,1760959838497,-362.87230939,0.00025,2]
[391892161,1760959838507,-300.86007013,0.0002501,2]
[391892162,1760959838516,-1849.0,0.00025052,2]
[391892163,1760959838526,-500.0,0.00025052,2]
[391892164,1760959838536,-586.0,0.00025052,2]
[391892165,1760959838546,-151.0,0.00025052,2]
[391892166,1760959838555,-500.0,0.00025052,2]
[391892167,1760959838565,-500.0,0.00025052,2]
[391892168,1760959838578,-500.0,0.00025052,2]
[391892169,1760959838587,-500.0,0.00025052,2]
[391892170,1760959838597,-1849.0,0.00025107,2]
[391892171,1760959838608,-500.0,0.00025107,2]
[391892172,1760959838618,-586.0,0.00025107,2]
[391892173,1760959838628,-190.26783446,0.00025107,2]
[391892174,1760959838638,-349.85739787,0.00025107,2]
[391892175,1760959838650,-500.0,0.00025107,2]
[391892176,1760959838659,-500.0,0.00025107,2]
[391892177,1760959838669,-500.0,0.00025107,2]
[391892178,1760959838678,-1849.0,0.00025162,2]
[391892179,1760959838688,-314.6905873,0.00025162,2]
[391892180,1760959838697,-586.0,0.00025162,2]
[391892181,1760959838706,-500.0,0.00025162,2]
[391892182,1760959838716,-500.0,0.00025162,2]
[391892183,1760959838725,-500.0,0.00025162,2]
[391892184,1760959838734,-500.0,0.00025163,2]
[391892185,1760959838743,-500.0,0.00025164,5]
[391892186,1760959838752,-401.0,0.00025204,2]
[391892187,1760959838762,-199.0,0.00025205,7]
[391892188,1760959838771,-1849.0,0.00025217,2]
[391892189,1760959838780,-586.0,0.00025217,2]
[391892190,1760959838790,-500.0,0.00025217,2]
[391892191,1760959838800,-500.0,0.00025217,2]
[391892192,1760959838810,-500.0,0.00025217,2]
[391892193,1760959838819,-1849.0,0.00025272,2]
[391892194,1760959838829,-586.0,0.00025272,2]
[391892195,1760959838839,-165.85092125,0.00025272,2]
[391892196,1760959838848,-500.0,0.00025272,2]
[391892197,1760959838858,-500.0,0.00025272,2]
[391892198,1760959838868,-1849.0,0.00025326,2]
[391892199,1760959838878,-586.0,0.00025326,2]
[391892200,1760959838888,-500.0,0.00025326,2]
[391892201,1760959838897,-500.0,0.00025326,2]
[391892202,1760959838907,-1849.0,0.00025381,2]
[391892203,1760959838917,-586.0,0.00025381,2]
[391892204,1760959838926,-500.0,0.00025381,2]
[391892205,1760959838937,-500.0,0.00025381,2]
[391892206,1760959838946,-685.21247534,0.00025421,2]
[391892207,1760959838956,-1000.0,0.00025421,2]
[391892208,1760959838966,-624.78465503,0.00025421,2]
[391892209,1760959838975,-1000.0,0.00025421,2]
[391892210,1760959838985,-1000.0,0.00025421,2]
[391892211,1760959838995,-1000.0,0.00025421,2]
[391892212,1760959839006,-1000.0,0.00025421,2]
[391892213,1760959839015,-261.40251625,0.00025421,2]
[391892214,1760959839024,-1000.0,0.00025421,2]
[391892215,1760959839035,-451.94778134,0.00025421,2]
[391892216,1760959839044,-500.0,0.00025421,2]
[391892217,1760959839054,-501.58006897,0.00025421,2]
[391892218,1760959839063,-236.45428499,0.00025421,2]
[391892219,1760959839073,-574.34399189,0.00025421,2]
[391892220,1760959839084,-1000.0,0.00025421,2]
[391892221,1760959839094,-1000.0,0.00025421,2]
[391892222,1760959839104,-1000.0,0.00025421,2]
[391892223,1760959839115,-1849.0,0.00025436,2]
[391892224,1760959839124,-586.0,0.00025436,2]
[391892225,1760959839134,-500.0,0.00025436,2]
[391892226,1760959839144,-294.96080455,0.00025436,2]
[391892227,1760959839153,-500.0,0.00025437,2]
[391892228,1760959839163,-500.0,0.00025438,5]
[391892229,1760959839172,-505.0,0.00025471,2]
[391892230,1760959839181,-199.0,0.00025479,8]
[391892231,1760959839191,-1849.0,0.00025491,2]
[391892232,1760959839201,-586.0,0.00025491,2]
[391892233,1760959839211,-500.0,0.00025491,2]
[391892234,1760959839221,-1000.0,0.000255,2]
[391892235,1760959839230,-1000.0,0.00025521,2]
[391892236,1760959839240,-1000.0,0.00025521,2]
[391892237,1760959839249,-195.0,0.00025543,2]
[391892238,1760959839259,-1849.0,0.00025546,2]
[391892239,1760959839270,-586.0,0.00025546,2]
[391892240,1760959839279,-429.97632628,0.00025546,2]
[391892241,1760959839289,-242.22859,0.00025575,2]
[391892242,1760959839299,-212.10558,0.00025575,2]
[391892243,1760959839308,-151.0,0.000256,17]
[391892244,1760959839318,-1849.0,0.000256,2]
[391892245,1760959839327,-586.0,0.000256,2]
[391892246,1760959839337,-1849.0,0.00025655,2]
[391892247,1760959839347,-586.0,0.00025655,2]